Workbook

Sheet Produktionsanlæg
A1: Produktionsanlæg | B1: Enhed | C1: Standard-levetid | D1: Samlet mængde per 31/12-2022 | E1: Samlet mængde per 31/12-2023 | F1: Samlet mængde per 31/12-2024 | G1: Afvigelse 2022-2023 | H1: Afvigelse 2023-2024 | I1: Bemærkninger
A3: Renseanlæg 1
A4: Mindre renseanlæg
A5: Mindre renseanlæg < 5.000 PE | B5: PE | C5: 40 | D5: 0 | G5: =IF(D5="",IF(E5>0,"Ny data",IF(E5="","",0)),IF(D5=0,IF(E5=0,0,"Ny data"),(E5-D5)/D5)) -> 0 | H5: =IF(E5="",IF(F5>0,"Ny data",IF(F5="","",0)),IF(E5=0,IF(F5=0,0,"Ny data"),(F5-E5)/E5)) -> 
A6: Mindre renseanlæg < 5.000 PE | B6: PE | C6: 40 | D6: 1500 | E6: 1500 | F6: 1500 | G6: 0 | H6: 0 | I6: Krumsø
A7: Mindre renseanlæg < 5.000 PE | B7: PE | C7: 40 | D7: 120 | E7: 120 | F7: 120 | G7: 0 | H7: 0 | I7: Hesnæs
A8: Mindre renseanlæg < 5.000 PE | B8: PE | C8: 40 | D8: 0 | G8: 0
A9: Mindre renseanlæg < 5.000 PE | B9: PE | C9: 40 | D9: 0 | G9: 0
A10: Mindre renseanlæg < 5.000 PE | B10: PE | C10: 40 | D10: 0 | G10: 0
A11: Mindre renseanlæg < 5.000 PE | B11: PE | C11: 40 | D11: 0 | G11: 0
A12: Mindre renseanlæg < 5.000 PE | B12: PE | C12: 40 | D12: 85 | E12: 85 | F12: 85 | G12: 0 | H12: 0 | I12: Byskov
A13: Mindre renseanlæg < 5.000 PE | B13: PE | C13: 40 | D13: 75 | E13: 75 | F13: 75 | G13: 0 | H13: 0 | I13: Rykkerup
A14: Mindre renseanlæg < 5.000 PE | B14: PE | C14: 40 | D14: 50 | E14: 50 | F14: 50 | G14: 0 | H14: 0 | I14: Nagelsti Strand
A15: Mindre renseanlæg < 5.000 PE | B15: PE | C15: 40 | D15: 40 | E15: 40 | F15: 40 | G15: 0 | H15: 0 | I15: Stangerup
A16: Renseanlæg >= 5.000 PE, Vandbehandling
A17: Indløb med riste, Konstruktioner | B17: PE | C17: 60 | D17: 0 | G17: =IF(D17="",IF(E17>0,"Ny data",IF(E17="","",0)),IF(D17=0,IF(E17=0,0,"Ny data"),(E17-D17)/D17)) -> 0 | H17: =IF(E17="",IF(F17>0,"Ny data",IF(F17="","",0)),IF(E17=0,IF(F17=0,0,"Ny data"),(F17-E17)/E17)) -> 
A18: Indløb med riste, Mek/EL | B18: PE | C18: 20 | D18: 0 | G18: 0
A19: Indløb med riste, SRO | B19: PE | C19: 10 | D19: 0 | G19: 0
A20: Sand- og fedtfang, Kontruktioner | B20: PE | C20: 60 | D20: 0 | G20: 0
A21: Sand- og fedtfang, Mek/EL | B21: PE | C21: 20 | D21: 0 | G21: 0
A22: Sand- og fedtfang, SRO | B22: PE | C22: 10 | D22: 0 | G22: 0
A23: Forklaring, Konstruktioner | B23: PE | C23: 60 | D23: 0 | G23: 0
A24: Forklaring, Mek/EL | B24: PE | C24: 20 | D24: 0 | G24: 0
A25: Forklaring, SRO | B25: PE | C25: 10 | D25: 0 | G25: 0
A26: Beluftningstanke, Konstruktioner | B26: PE | C26: 60 | D26: 0 | G26: 0
A27: Beluftningstanke, Mek/EL | B27: PE | C27: 20 | D27: 0 | G27: 0
A28: Beluftningstanke, SRO | B28: PE | C28: 10 | D28: 0 | G28: 0
A29: Efterklaringstanke, Konstruktioner | B29: PE | C29: 60 | D29: 0 | G29: 0
A30: Efterklaringstanke, Mek/El | B30: PE | C30: 20 | D30: 0 | G30: 0
A31: Efterklaringstanke, SRO | B31: PE | C31: 10 | D31: 0 | G31: 0
A32: Efterbehandlingsanlæg (sandfilter), Konstruktioner | B32: PE | C32: 60 | D32: 0 | G32: 0
A33: Efterbehandlingsanlæg (sandfilter), Mek/EL | B33: PE | C33: 20 | D33: 0 | G33: 0
A34: Efterbehandlingsanlæg (sandfilter), SRO | B34: PE | C34: 10 | D34: 0 | G34: 0
A35: Renseanlæg >= 5.000 PE, Slambehandling
A36: Forafvanding, slam, Konstruktion | B36: PE | C36: 60 | D36: 0 | G36: =IF(D36="",IF(E36>0,"Ny data",IF(E36="","",0)),IF(D36=0,IF(E36=0,0,"Ny data"),(E36-D36)/D36)) -> 0 | H36: =IF(E36="",IF(F36>0,"Ny data",IF(F36="","",0)),IF(E36=0,IF(F36=0,0,"Ny data"),(F36-E36)/E36)) -> 
A37: Forafvanding, slam, Mek/EL | B37: PE | C37: 20 | D37: 0 | G37: 0
A38: Forafvanding, slam, SRO | B38: PE | C38: 10 | D38: 0 | G38: 0
A39: Rådnetanke, slam, Konstruktioner | B39: PE | C39: 60 | D39: 0 | G39: 0
A40: Rådnetanke, slam, Mek/EL | B40: PE | C40: 20 | D40: 0 | G40: 0
A41: Rådnetanke, slam, SRO | B41: PE | C41: 10 | D41: 0 | G41: 0
A42: Gasdisponering, Konstruktioner | B42: PE | C42: 60 | D42: 0 | G42: 0
A43: Gasdisponering, Mek/EL | B43: PE | C43: 20 | D43: 0 | G43: 0
A44: Gasdisponering, SRO | B44: PE | C44: 10 | D44: 0 | G44: 0
A45: Gasdisponering - elproduktionsanlæg, Konstruktioner | B45: PE | C45: 60 | D45: 0 | G45: 0
A46: Gasdisponering - elproduktionsanlæg, Mek/EL | B46: PE | C46: 20 | D46: 0 | G46: 0
A47: Gasdisponering - elproduktionsanlæg, SRO | B47: PE | C47: 10 | D47: 0 | G47: 0
A48: Gasrensning - Aktivt kulfilter | B48: m3/t | C48: 15 | D48: 0 | G48: 0
A49: Gasrensning - Biologisk skrubber | B49: m3/t | C49: 15 | D49: 0 | G49: 0
A50: Opgraderingsanlæg - Membran | B50: m3/t | C50: 15 | D50: 0 | G50: 0
A51: Varmeproduktionsanlæg | B51: m3/t | C51: 15 | D51: 0 | G51: 0
A52: Slutafvanding, slam - lavteknologisk (slambede), Konstruktioner | B52: PE | C52: 60 | D52: 0 | G52: 0
A53: Slutafvanding, slam - lavteknologisk (slambede), Mek/EL | B53: PE | C53: 20 | D53: 0 | G53: 0
A54: Slutafvanding, slam - lavteknologisk (slambede), SRO | B54: PE | C54: 10 | D54: 0 | G54: 0
A55: Slutafvanding, slam - højteknologisk (centrifuger), Konstruktioner | B55: PE | C55: 60 | D55: 0 | G55: 0
A56: Slutafvanding, slam - højteknologisk (centrifuger), Mek/El | B56: PE | C56: 20 | D56: 0 | G56: 0
A57: Slutafvanding, slam - højteknologisk (centrifuger), SRO | B57: PE | C57: 10 | D57: 0 | G57: 0
A58: Renseanlæg >= 5.000 PE, Slamdisponering
A59: Slutdisponering, slam - lavteknologisk (slammineralisering), Konstruktioner | B59: PE | C59: 60 | D59: 0 | G59: =IF(D59="",IF(E59>0,"Ny data",IF(E59="","",0)),IF(D59=0,IF(E59=0,0,"Ny data"),(E59-D59)/D59)) -> 0 | H59: =IF(E59="",IF(F59>0,"Ny data",IF(F59="","",0)),IF(E59=0,IF(F59=0,0,"Ny data"),(F59-E59)/E59)) -> 
A60: Slutdisponering, slam - lavteknologisk (slammineralisering), Mek/EL | B60: PE | C60: 20 | D60: 0 | G60: 0
A61: Slutdisponering, slam - lavteknologisk (slammineralisering), SRO | B61: PE | C61: 10 | D61: 0 | G61: 0
A62: Slutdisponering, slam - højteknologisk (slamtørring), Konstruktioner | B62: PE | C62: 60 | D62: 0 | G62: 0
A63: Slutdisponering, slam - højteknologisk (slamtørring), Mek/EL | B63: PE | C63: 20 | D63: 0 | G63: 0
A64: Slutdisponering, slam - højteknologisk (slamtørring), SRO | B64: PE | C64: 10 | D64: 0 | G64: 0
A65: Slutdisponering, slam - højteknologisk (slamtørring og -forbrænding), Konstruktioner | B65: PE | C65: 60 | D65: 0 | G65: 0
A66: Slutdisponering, slam - højteknologisk (slamtørring og -forbrænding), Mek/EL | B66: PE | C66: 20 | D66: 0 | G66: 0
A67: Slutdisponering, slam - højteknologisk (slamtørring og -forbrænding), SRO | B67: PE | C67: 10 | D67: 0 | G67: 0
A68: Renseanlæg 2
A69: Mindre renseanlæg
A70: Mindre renseanlæg < 5.000 PE | B70: PE | C70: 40 | D70: 0 | G70: =IF(D70="",IF(E70>0,"Ny data",IF(E70="","",0)),IF(D70=0,IF(E70=0,0,"Ny data"),(E70-D70)/D70)) -> 0 | H70: =IF(E70="",IF(F70>0,"Ny data",IF(F70="","",0)),IF(E70=0,IF(F70=0,0,"Ny data"),(F70-E70)/E70)) -> 
A71: Renseanlæg >= 5.000 PE, Vandbehandling
A72: Indløb med riste, Konstruktioner | B72: PE | C72: 60 | D72: 45000 | E72: 45000 | F72: 45000 | G72: 0 | H72: 0
A73: Indløb med riste, Mek/EL | B73: PE | C73: 20 | D73: 45000 | E73: 45000 | F73: 45000 | G73: 0 | H73: 0
A74: Indløb med riste, SRO | B74: PE | C74: 10 | D74: 45000 | E74: 45000 | F74: 45000 | G74: 0 | H74: 0
A75: Sand- og fedtfang, Kontruktioner | B75: PE | C75: 60 | D75: 45000 | E75: 45000 | F75: 45000 | G75: 0 | H75: 0
A76: Sand- og fedtfang, Mek/EL | B76: PE | C76: 20 | D76: 45000 | E76: 45000 | F76: 45000 | G76: 0 | H76: 0
A77: Sand- og fedtfang, SRO | B77: PE | C77: 10 | D77: 45000 | E77: 45000 | F77: 45000 | G77: 0 | H77: 0
A78: Forklaring, Konstruktioner | B78: PE | C78: 60 | D78: 0 | G78: 0
A79: Forklaring, Mek/EL | B79: PE | C79: 20 | D79: 0 | G79: 0
A80: Forklaring, SRO | B80: PE | C80: 10 | D80: 0 | G80: 0
A81: Beluftningstanke, Konstruktioner | B81: PE | C81: 60 | D81: 45000 | E81: 45000 | F81: 45000 | G81: 0 | H81: 0
A82: Beluftningstanke, Mek/EL | B82: PE | C82: 20 | D82: 45000 | E82: 45000 | F82: 45000 | G82: 0 | H82: 0
A83: Beluftningstanke, SRO | B83: PE | C83: 10 | D83: 45000 | E83: 45000 | F83: 45000 | G83: 0 | H83: 0
A84: Efterklaringstanke, Konstruktioner | B84: PE | C84: 60 | D84: 45000 | E84: 45000 | F84: 45000 | G84: 0 | H84: 0
A85: Efterklaringstanke, Mek/El | B85: PE | C85: 20 | D85: 45000 | E85: 45000 | F85: 45000 | G85: 0 | H85: 0
A86: Efterklaringstanke, SRO | B86: PE | C86: 10 | D86: 45000 | E86: 45000 | F86: 45000 | G86: 0 | H86: 0
A87: Efterbehandlingsanlæg (sandfilter), Konstruktioner | B87: PE | C87: 60 | D87: 0 | G87: 0
A88: Efterbehandlingsanlæg (sandfilter), Mek/EL | B88: PE | C88: 20 | D88: 0 | G88: 0
A89: Efterbehandlingsanlæg (sandfilter), SRO | B89: PE | C89: 10 | D89: 0 | G89: 0
A90: Renseanlæg >= 5.000 PE, Slambehandling
A91: Forafvanding, slam, Konstruktion | B91: PE | C91: 60 | D91: 35000 | E91: 35000 | F91: 35000 | G91: 0 | H91: 0
A92: Forafvanding, slam, Mek/EL | B92: PE | C92: 20 | D92: 35000 | E92: 35000 | F92: 35000 | G92: 0 | H92: 0
A93: Forafvanding, slam, SRO | B93: PE | C93: 10 | D93: 35000 | E93: 35000 | F93: 35000 | G93: 0 | H93: 0
A94: Rådnetanke, slam, Konstruktioner | B94: PE | C94: 60 | D94: 0 | G94: 0
A95: Rådnetanke, slam, Mek/EL | B95: PE | C95: 20 | D95: 0 | G95: 0
A96: Rådnetanke, slam, SRO | B96: PE | C96: 10 | D96: 0 | G96: 0
A97: Gasdisponering, Konstruktioner | B97: PE | C97: 60 | D97: 0 | G97: 0
A98: Gasdisponering, Mek/EL | B98: PE | C98: 20 | D98: 0 | G98: 0
A99: Gasdisponering, SRO | B99: PE | C99: 10 | D99: 0 | G99: 0
A100: Gasdisponering - elproduktionsanlæg, Konstruktioner | B100: PE | C100: 60 | D100: 0 | G100: 0
A101: Gasdisponering - elproduktionsanlæg, Mek/EL | B101: PE | C101: 20 | D101: 0 | G101: 0
A102: Gasdisponering - elproduktionsanlæg, SRO | B102: PE | C102: 10 | D102: 0 | G102: 0
A103: Gasrensning - Aktivt kulfilter | B103: m3/t | C103: 15 | D103: 0 | G103: 0
A104: Gasrensning - Biologisk skrubber | B104: m3/t | C104: 15 | D104: 0 | G104: 0
A105: Opgraderingsanlæg - Membran | B105: m3/t | C105: 15 | D105: 0 | G105: 0
A106: Varmeproduktionsanlæg | B106: m3/t | C106: 15 | D106: 0 | G106: 0
A107: Slutafvanding, slam - lavteknologisk (slambede), Konstruktioner | B107: PE | C107: 60 | D107: 0 | G107: 0
A108: Slutafvanding, slam - lavteknologisk (slambede), Mek/EL | B108: PE | C108: 20 | D108: 0 | G108: 0
A109: Slutafvanding, slam - lavteknologisk (slambede), SRO | B109: PE | C109: 10 | D109: 0 | G109: 0
A110: Slutafvanding, slam - højteknologisk (centrifuger), Konstruktioner | B110: PE | C110: 60 | D110: 60000 | E110: 60000 | F110: 60000 | G110: 0 | H110: 0
A111: Slutafvanding, slam - højteknologisk (centrifuger), Mek/El | B111: PE | C111: 20 | D111: 60000 | E111: 60000 | F111: 60000 | G111: 0 | H111: 0
A112: Slutafvanding, slam - højteknologisk (centrifuger), SRO | B112: PE | C112: 10 | D112: 60000 | E112: 60000 | F112: 60000 | G112: 0 | H112: 0
A113: Renseanlæg >= 5.000 PE, Slamdisponering
A114: Slutdisponering, slam - lavteknologisk (slammineralisering), Konstruktioner | B114: PE | C114: 60 | D114: 0 | G114: 0
A115: Slutdisponering, slam - lavteknologisk (slammineralisering), Mek/EL | B115: PE | C115: 20 | D115: 0 | G115: 0
A116: Slutdisponering, slam - lavteknologisk (slammineralisering), SRO | B116: PE | C116: 10 | D116: 0 | G116: 0
A117: Slutdisponering, slam - højteknologisk (slamtørring), Konstruktioner | B117: PE | C117: 60 | D117: 0 | G117: 0
A118: Slutdisponering, slam - højteknologisk (slamtørring), Mek/EL | B118: PE | C118: 20 | D118: 0 | G118: 0
A119: Slutdisponering, slam - højteknologisk (slamtørring), SRO | B119: PE | C119: 10 | D119: 0 | G119: 0
A120: Slutdisponering, slam - højteknologisk (slamtørring og -forbrænding), Konstruktioner | B120: PE | C120: 60 | D120: 0 | G120: 0
A121: Slutdisponering, slam - højteknologisk (slamtørring og -forbrænding), Mek/EL | B121: PE | C121: 20 | D121: 0 | G121: 0
A122: Slutdisponering, slam - højteknologisk (slamtørring og -forbrænding), SRO | B122: PE | C122: 10 | D122: 0 | G122: 0
A123: Renseanlæg 3
A124: Mindre renseanlæg
A125: Mindre renseanlæg < 5.000 PE | B125: PE | C125: 40 | D125: 0 | G125: 0
A126: Renseanlæg >= 5.000 PE, Vandbehandling
A127: Indløb med riste, Konstruktioner | B127: PE | C127: 60 | D127: 30000 | E127: 30000 | F127: 30000 | G127: 0 | H127: 0
A128: Indløb med riste, Mek/EL | B128: PE | C128: 20 | D128: 30000 | E128: 30000 | F128: 30000 | G128: 0 | H128: 0
A129: Indløb med riste, SRO | B129: PE | C129: 10 | D129: 30000 | E129: 30000 | F129: 30000 | G129: 0 | H129: 0
A130: Sand- og fedtfang, Kontruktioner | B130: PE | C130: 60 | D130: 30000 | E130: 30000 | F130: 30000 | G130: 0 | H130: 0
A131: Sand- og fedtfang, Mek/EL | B131: PE | C131: 20 | D131: 30000 | E131: 30000 | F131: 30000 | G131: 0 | H131: 0
A132: Sand- og fedtfang, SRO | B132: PE | C132: 10 | D132: 30000 | E132: 30000 | F132: 30000 | G132: 0 | H132: 0
A133: Forklaring, Konstruktioner | B133: PE | C133: 60 | D133: 0 | G133: 0
A134: Forklaring, Mek/EL | B134: PE | C134: 20 | D134: 0 | G134: =IF(D134="",IF(E134>0,"Ny data",IF(E134="","",0)),IF(D134=0,IF(E134=0,0,"Ny data"),(E134-D134)/D134)) -> 0 | H134: =IF(E134="",IF(F134>0,"Ny data",IF(F134="","",0)),IF(E134=0,IF(F134=0,0,"Ny data"),(F134-E134)/E134)) -> 
A135: Forklaring, SRO | B135: PE | C135: 10 | D135: 0 | G135: 0
A136: Beluftningstanke, Konstruktioner | B136: PE | C136: 60 | D136: 40000 | E136: 40000 | F136: 40000 | G136: 0 | H136: 0
A137: Beluftningstanke, Mek/EL | B137: PE | C137: 20 | D137: 40000 | E137: 40000 | F137: 40000 | G137: 0 | H137: 0
A138: Beluftningstanke, SRO | B138: PE | C138: 10 | D138: 40000 | E138: 40000 | F138: 40000 | G138: 0 | H138: 0
A139: Efterklaringstanke, Konstruktioner | B139: PE | C139: 60 | D139: 40000 | E139: 40000 | F139: 40000 | G139: 0 | H139: 0
A140: Efterklaringstanke, Mek/El | B140: PE | C140: 20 | D140: 40000 | E140: 40000 | F140: 40000 | G140: 0 | H140: 0
A141: Efterklaringstanke, SRO | B141: PE | C141: 10 | D141: 40000 | E141: 40000 | F141: 40000 | G141: 0 | H141: 0
A142: Efterbehandlingsanlæg (sandfilter), Konstruktioner | B142: PE | C142: 60 | D142: 0 | G142: 0
A143: Efterbehandlingsanlæg (sandfilter), Mek/EL | B143: PE | C143: 20 | D143: 0 | G143: 0
A144: Efterbehandlingsanlæg (sandfilter), SRO | B144: PE | C144: 10 | D144: 0 | G144: 0
A145: Renseanlæg >= 5.000 PE, Slambehandling
A146: Forafvanding, slam, Konstruktion | B146: PE | C146: 60 | D146: 0 | G146: 0
A147: Forafvanding, slam, Mek/EL | B147: PE | C147: 20 | D147: 0 | G147: 0
A148: Forafvanding, slam, SRO | B148: PE | C148: 10 | D148: 0 | G148: 0
A149: Rådnetanke, slam, Konstruktioner | B149: PE | C149: 60 | D149: 0 | G149: 0
A150: Rådnetanke, slam, Mek/EL | B150: PE | C150: 20 | D150: 0 | G150: 0
A151: Rådnetanke, slam, SRO | B151: PE | C151: 10 | D151: 0 | G151: 0
A152: Gasdisponering, Konstruktioner | B152: PE | C152: 60 | D152: 0 | G152: 0
A153: Gasdisponering, Mek/EL | B153: PE | C153: 20 | D153: 0 | G153: 0
A154: Gasdisponering, SRO | B154: PE | C154: 10 | D154: 0 | G154: 0
A155: Gasdisponering - elproduktionsanlæg, Konstruktioner | B155: PE | C155: 60 | D155: 0 | G155: 0
A156: Gasdisponering - elproduktionsanlæg, Mek/EL | B156: PE | C156: 20 | D156: 0 | G156: 0
A157: Gasdisponering - elproduktionsanlæg, SRO | B157: PE | C157: 10 | D157: 0 | G157: 0
A158: Gasrensning - Aktivt kulfilter | B158: m3/t | C158: 15 | D158: 0 | G158: 0
A159: Gasrensning - Biologisk skrubber | B159: m3/t | C159: 15 | D159: 0 | G159: 0
A160: Opgraderingsanlæg - Membran | B160: m3/t | C160: 15 | D160: 0 | G160: 0
A161: Varmeproduktionsanlæg | B161: m3/t | C161: 15 | D161: 0 | G161: 0
A162: Slutafvanding, slam - lavteknologisk (slambede), Konstruktioner | B162: PE | C162: 60 | D162: 0 | G162: 0
A163: Slutafvanding, slam - lavteknologisk (slambede), Mek/EL | B163: PE | C163: 20 | D163: 0 | G163: 0
A164: Slutafvanding, slam - lavteknologisk (slambede), SRO | B164: PE | C164: 10 | D164: 0 | G164: 0
A165: Slutafvanding, slam - højteknologisk (centrifuger), Konstruktioner | B165: PE | C165: 60 | D165: 45000 | E165: 45000 | F165: 45000 | G165: 0 | H165: 0
A166: Slutafvanding, slam - højteknologisk (centrifuger), Mek/El | B166: PE | C166: 20 | D166: 45000 | E166: 45000 | F166: 45000 | G166: 0 | H166: 0
A167: Slutafvanding, slam - højteknologisk (centrifuger), SRO | B167: PE | C167: 10 | D167: 45000 | E167: 45000 | F167: 45000 | G167: 0 | H167: 0
A168: Renseanlæg >= 5.000 PE, Slamdisponering
A169: Slutdisponering, slam - lavteknologisk (slammineralisering), Konstruktioner | B169: PE | C169: 60 | D169: 0 | G169: 0
A170: Slutdisponering, slam - lavteknologisk (slammineralisering), Mek/EL | B170: PE | C170: 20 | D170: 0 | G170: 0
A171: Slutdisponering, slam - lavteknologisk (slammineralisering), SRO | B171: PE | C171: 10 | D171: 0 | G171: 0
A172: Slutdisponering, slam - højteknologisk (slamtørring), Konstruktioner | B172: PE | C172: 60 | D172: 0 | G172: 0
A173: Slutdisponering, slam - højteknologisk (slamtørring), Mek/EL | B173: PE | C173: 20 | D173: 0 | G173: 0
A174: Slutdisponering, slam - højteknologisk (slamtørring), SRO | B174: PE | C174: 10 | D174: 0 | G174: 0
A175: Slutdisponering, slam - højteknologisk (slamtørring og -forbrænding), Konstruktioner | B175: PE | C175: 60 | D175: 0 | G175: 0
A176: Slutdisponering, slam - højteknologisk (slamtørring og -forbrænding), Mek/EL | B176: PE | C176: 20 | D176: 0 | G176: 0
A177: Slutdisponering, slam - højteknologisk (slamtørring og -forbrænding), SRO | B177: PE | C177: 10 | D177: 0 | G177: 0
A178: Renseanlæg 4
A179: Mindre renseanlæg
A180: Mindre renseanlæg < 5.000 PE | B180: PE | C180: 40 | D180: 0 | G180: 0
A181: Renseanlæg >= 5.000 PE, Vandbehandling
A182: Indløb med riste, Konstruktioner | B182: PE | C182: 60 | D182: 11000 | E182: 11000 | F182: 11000 | G182: 0 | H182: 0
A183: Indløb med riste, Mek/EL | B183: PE | C183: 20 | D183: 11000 | E183: 11000 | F183: 11000 | G183: 0 | H183: 0
A184: Indløb med riste, SRO | B184: PE | C184: 10 | D184: 11000 | E184: 11000 | F184: 11000 | G184: 0 | H184: 0
A185: Sand- og fedtfang, Kontruktioner | B185: PE | C185: 60 | D185: 11000 | E185: 11000 | F185: 11000 | G185: 0 | H185: 0
A186: Sand- og fedtfang, Mek/EL | B186: PE | C186: 20 | D186: 11000 | E186: 11000 | F186: 11000 | G186: 0 | H186: 0
A187: Sand- og fedtfang, SRO | B187: PE | C187: 10 | D187: 11000 | E187: 11000 | F187: 11000 | G187: 0 | H187: 0
A188: Forklaring, Konstruktioner | B188: PE | C188: 60 | D188: 0 | G188: 0
A189: Forklaring, Mek/EL | B189: PE | C189: 20 | D189: 0 | G189: 0
A190: Forklaring, SRO | B190: PE | C190: 10 | D190: 0 | G190: 0
A191: Beluftningstanke, Konstruktioner | B191: PE | C191: 60 | D191: 20000 | E191: 20000 | F191: 20000 | G191: 0 | H191: 0
A192: Beluftningstanke, Mek/EL | B192: PE | C192: 20 | D192: 20000 | E192: 20000 | F192: 20000 | G192: 0 | H192: 0
A193: Beluftningstanke, SRO | B193: PE | C193: 10 | D193: 20000 | E193: 20000 | F193: 20000 | G193: 0 | H193: 0
A194: Efterklaringstanke, Konstruktioner | B194: PE | C194: 60 | D194: 20000 | E194: 20000 | F194: 20000 | G194: 0 | H194: 0
A195: Efterklaringstanke, Mek/El | B195: PE | C195: 20 | D195: 20000 | E195: 20000 | F195: 20000 | G195: 0 | H195: 0
A196: Efterklaringstanke, SRO | B196: PE | C196: 10 | D196: 20000 | E196: 20000 | F196: 20000 | G196: 0 | H196: 0
A197: Efterbehandlingsanlæg (sandfilter), Konstruktioner | B197: PE | C197: 60 | D197: 0 | G197: 0
A198: Efterbehandlingsanlæg (sandfilter), Mek/EL | B198: PE | C198: 20 | D198: 0 | G198: =IF(D198="",IF(E198>0,"Ny data",IF(E198="","",0)),IF(D198=0,IF(E198=0,0,"Ny data"),(E198-D198)/D198)) -> 0 | H198: =IF(E198="",IF(F198>0,"Ny data",IF(F198="","",0)),IF(E198=0,IF(F198=0,0,"Ny data"),(F198-E198)/E198)) -> 
A199: Efterbehandlingsanlæg (sandfilter), SRO | B199: PE | C199: 10 | D199: 0 | G199: 0
A200: Renseanlæg >= 5.000 PE, Slambehandling
A201: Forafvanding, slam, Konstruktion | B201: PE | C201: 60 | D201: 0 | G201: 0
... 361 more rows

Sheet Distributionsanlæg
A1: Distributionsanlæg | B1: Enhed | C1: Standard-levetid | D1: Samlet mængde per 31/12-2022 | E1: Samlet mængde per 31/12-2023 | F1: Samlet mængde per 31/12-2024 | G1: Afvigelse 2022-2023 | H1: Afvigelse 2023-2024 | I1: Bemærkninger
A3: Ledningsnet - Land | G3: =IF(D3="",IF(E3>0,"Ny data",IF(E3="","",0)),IF(D3=0,IF(E3=0,0,"Ny data"),(E3-D3)/D3)) ->  | H3: =IF(E3="",IF(F3>0,"Ny data",IF(F3="","",0)),IF(E3=0,IF(F3=0,0,"Ny data"),(F3-E3)/E3)) -> 
A4: Ledningsnet ≤ Ø 200 mm | B4: meter | C4: 75 | D4: 1031710 | E4: 1092085 | F4: 1092385 | G4: 0.05851935137 | H4: 0.0002747038921
A5: Ø 200 mm < Ledningsnet ≤ Ø 500 mm | B5: meter | C5: 75 | D5: =162740 -> 162740 | E5: 162732 | F5: 162732 | G5: -4.91581664e-05 | H5: 0
A6: Ø 500 mm < Ledningsnet ≤ Ø 800 mm | B6: meter | C6: 75 | D6: 12831 | E6: 13444 | F6: 13444 | G6: 0.04777492012 | H6: 0
A7: Ø 800 mm < Ledningsnet ≤ Ø 1000 mm | B7: meter | C7: 75 | D7: 2021 | E7: 2811 | F7: 2811 | G7: 0.3908955962 | H7: 0 | I7: ledninger med Ejerfordeling 'Uoplyst* er medtaget
A8: Ø 1000 mm < Ledningsnet ≤ Ø 1200 mm | B8: meter | C8: 75 | D8: 441 | E8: 541 | F8: 541 | G8: 0.2267573696 | H8: 0 | I8: ledninger med Ejerfordeling 'Uoplyst* er medtaget
A9: Ø 1200 mm < Ledningsnet ≤ Ø 1600 mm | B9: meter | C9: 75 | D9: 19 | E9: 26 | F9: 26 | G9: 0.3684210526 | H9: 0 | I9: en ny ledning er fundet
A10: Ledningsnet > Ø 1600 mm (rørbassiner og transportledninger) | B10: meter | C10: 75 | D10: 0 | G10: 0
A11: Strømpeforing ≤ Ø 200 mm | B11: meter | C11: 50 | D11: 17093 | E11: 17243 | F11: 17443 | G11: 0.008775522144 | H11: 0.0115989097
A12: Strømpeforing Ø 200 mm < Ledningsnet ≤ Ø 500 mm | B12: meter | C12: 50 | D12: 8747 | E12: 8947 | F12: 8997 | G12: 0.02286498228 | H12: 0.005588465407
A13: Strømpeforing Ø 500 mm < Ledningsnet ≤ Ø 800 mm | B13: meter | C13: 50 | D13: 1613 | E13: 1613 | F13: 1673 | G13: 0 | H13: 0.03719776813
A14: Strømpeforing Ø 800 mm < Ledningsnet ≤ Ø 1000 mm | B14: meter | C14: 50 | D14: 404 | E14: 404 | F14: 404 | G14: 0 | H14: 0 | I14: Diameter af nogle ledninger er rettet
A15: Strømpeforing Ø 1000 mm < Ledningsnet ≤ Ø 1200 mm | B15: meter | C15: 50 | D15: 0 | G15: 0
A16: Strømpeforing Ø 1200 mm < Ledningsnet ≤ Ø 1600 mm | B16: meter | C16: 50 | D16: 0 | G16: 0
A17: Ledningsnet - By
A18: Ledningsnet ≤ Ø 200 mm | B18: meter | C18: 75 | D18: 401882 | E18: 480750 | F18: 481112 | G18: 0.1962466595 | H18: 0.0007529901196
A19: Ø 200 mm < Ledningsnet ≤ Ø 500 mm | B19: meter | C19: 75 | D19: =187922+2500+1200+1450+900 -> 193972 | E19: 240512 | F19: 240512 | G19: 0.2399315365 | H19: 0 | I19: ledninger med Ejerfordeling 'Uoplyst* er medtaget
A20: Ø 500 mm < Ledningsnet ≤ Ø 800 mm | B20: meter | C20: 75 | D20: 37286 | E20: 41700 | F20: 42250 | G20: 0.1183822346 | H20: 0.01318944844
A21: Ø 800 mm < Ledningsnet ≤ Ø 1000 mm | B21: meter | C21: 75 | D21: 10089 | E21: 11000 | F21: 11000 | G21: 0.09029636237 | H21: 0
A22: Ø 1000 mm < Ledningsnet ≤ Ø 1200 mm | B22: meter | C22: 75 | D22: 2104 | E22: 2018 | F22: 2018 | G22: -0.04087452471 | H22: 0
A23: Ø 1200 mm < Ledningsnet ≤ Ø 1600 mm | B23: meter | C23: 75 | D23: 1190 | E23: 1460 | F23: 1460 | G23: 0.2268907563 | H23: 0 | I23: ledninger med Ejerfordeling 'Uoplyst* er medtaget , ledninger fra City
A24: Ledningsnet > Ø 1600 mm (rørbassiner og transportledninger) | B24: meter | C24: 75 | D24: 61 | E24: 352 | F24: 352 | G24: 4.770491803 | H24: 0 | I24: rør bassin er fundet
A25: Strømpeforing ≤ Ø 200 mm | B25: meter | C25: 50 | D25: 24362 | E25: 24430 | F25: 26237 | G25: 0.002791232247 | H25: 0.07396643471
A26: Strømpeforing Ø 200 mm < Ledningsnet ≤ Ø 500 mm | B26: meter | C26: 50 | D26: 32355 | E26: 32705 | F26: 34281 | G26: 0.01081749343 | H26: 0.04818835041
A27: Strømpeforing Ø 500 mm < Ledningsnet ≤ Ø 800 mm | B27: meter | C27: 50 | D27: 2050 | E27: 1997 | F27: 1997 | G27: -0.02585365854 | H27: 0
A28: Strømpeforing Ø 800 mm < Ledningsnet ≤ Ø 1000 mm | B28: meter | C28: 50 | D28: 147 | E28: 147 | F28: 147 | G28: 0 | H28: 0
A29: Strømpeforing Ø 1000 mm < Ledningsnet ≤ Ø 1200 mm | B29: meter | C29: 50 | D29: 0 | G29: 0
A30: Strømpeforing Ø 1200 mm < Ledningsnet ≤ Ø 1600 mm | B30: meter | C30: 50 | D30: 33 | E30: 39 | F30: 39 | G30: 0.1818181818 | H30: 0
A31: Ledningsnet - City
A32: Ledningsnet ≤ Ø 200 mm | B32: meter | C32: 75 | D32: 19765 | E32: 18386 | F32: 18386 | G32: -0.06976979509 | H32: 0
A33: Ø 200 mm < Ledningsnet ≤ Ø 500 mm | B33: meter | C33: 75 | D33: 9848 | E33: 8292 | F33: 8292 | G33: -0.1580016247 | H33: 0
A34: Ø 500 mm < Ledningsnet ≤ Ø 800 mm | B34: meter | C34: 75 | D34: 2118 | E34: 1935 | F34: 1935 | G34: -0.08640226629 | H34: 0
A35: Ø 800 mm < Ledningsnet ≤ Ø 1000 mm | B35: meter | C35: 75 | D35: 275 | E35: 291 | F35: 291 | G35: 0.05818181818 | H35: 0
A36: Ø 1000 mm < Ledningsnet ≤ Ø 1200 mm | B36: meter | C36: 75 | D36: 200 | E36: 213 | F36: 213 | G36: 0.065 | H36: 0
A37: Ø 1200 mm < Ledningsnet ≤ Ø 1600 mm | B37: meter | C37: 75 | D37: 235 | E37: 101 | F37: 101 | G37: -0.570212766 | H37: 0 | I37: Ændring af Lokation til By
A38: Ledningsnet > Ø 1600 mm (rørbassiner og transportledninger) | B38: meter | C38: 75 | D38: 3 | E38: 0 | F38: 0 | G38: -1 | H38: 0 | I38: Ændret
A39: Strømpeforing ≤ Ø 200 mm | B39: meter | C39: 50 | D39: 1518 | E39: 1518 | F39: 1940 | G39: 0 | H39: 0.277997365 | I39: 422 er strømpeforet i 2024
A40: Strømpeforing Ø 200 mm < Ledningsnet ≤ Ø 500 mm | B40: meter | C40: 50 | D40: 2208 | E40: 2208 | F40: 2458 | G40: 0 | H40: 0.1132246377
A41: Strømpeforing Ø 500 mm < Ledningsnet ≤ Ø 800 mm | B41: meter | C41: 50 | D41: 195 | E41: 195 | F41: 270 | G41: 0 | H41: 0.3846153846 | I41: 75 m er strømpeforet i 2024
A42: Strømpeforing Ø 800 mm < Ledningsnet ≤ Ø 1000 mm | B42: meter | C42: 50 | D42: 30 | E42: 30 | F42: 30 | G42: 0 | H42: 0
A43: Strømpeforing Ø 1000 mm < Ledningsnet ≤ Ø 1200 mm | B43: meter | C43: 50 | D43: 0 | G43: 0
A44: Strømpeforing Ø 1200 mm < Ledningsnet ≤ Ø 1600 mm | B44: meter | C44: 50 | D44: 7 | E44: 0 | G44: -1 | H44: 0 | I44: Ændret
A45: Ledningsnet - Indre city
A46: Ledningsnet ≤ Ø 200 mm | B46: meter | C46: 75 | D46: 0 | G46: 0
A47: Ø 200 mm < Ledningsnet ≤ Ø 500 mm | B47: meter | C47: 75 | D47: 0 | G47: 0
A48: Ø 500 mm < Ledningsnet ≤ Ø 800 mm | B48: meter | C48: 75 | D48: 0 | G48: 0
A49: Ø 800 mm < Ledningsnet ≤ Ø 1000 mm | B49: meter | C49: 75 | D49: 0 | G49: 0
A50: Ø 1000 mm < Ledningsnet ≤ Ø 1200 mm | B50: meter | C50: 75 | D50: 0 | G50: 0
A51: Ø 1200 mm < Ledningsnet ≤ Ø 1600 mm | B51: meter | C51: 75 | D51: 0 | G51: 0
A52: Ledningsnet > Ø 1600 mm (rørbassiner og transportledninger) | B52: meter | C52: 75 | D52: 0 | G52: 0
A53: Strømpeforing ≤ Ø 200 mm | B53: meter | C53: 50 | D53: 0 | G53: 0
A54: Strømpeforing Ø 200 mm < Ledningsnet ≤ Ø 500 mm | B54: meter | C54: 50 | D54: 0 | G54: 0
A55: Strømpeforing Ø 500 mm < Ledningsnet ≤ Ø 800 mm | B55: meter | C55: 50 | D55: 0 | G55: 0
A56: Strømpeforing Ø 800 mm < Ledningsnet ≤ Ø 1000 mm | B56: meter | C56: 50 | D56: 0 | G56: 0
A57: Strømpeforing Ø 1000 mm < Ledningsnet ≤ Ø 1200 mm | B57: meter | C57: 50 | D57: 0 | G57: 0
A58: Strømpeforing Ø 1200 mm < Ledningsnet ≤ Ø 1600 mm | B58: meter | C58: 50 | D58: 0 | G58: 0
A59: Brønde og stik, ledningsnet - Land
A60: Brønde | B60: stk. | C60: 75 | D60: =14475+4+10 -> 14489 | E60: 12825 | F60: 12743 | G60: -0.114845745 | H60: -0.006393762183
A61: Stik | B61: stk. | C61: 75 | D61: 19345 | E61: 18211 | F61: 18211 | G61: -0.0586197984 | H61: 0
A62: Brønde og stik, ledningsnet - By
A63: Brønde | B63: stk. | C63: 75 | D63: =14262+28+9 -> 14299 | E63: 12596 | F63: 12999 | G63: -0.1190992377 | H63: 0.0319942839
A64: Stik | B64: stk. | C64: 75 | D64: 35738 | E64: 34005 | F64: 33709 | G64: -0.04849180144 | H64: -0.008704602264
A65: Brønde og stik, ledningsnet - City
A66: Brønde | B66: stk. | C66: 75 | D66: 651 | E66: 600 | F66: 600 | G66: -0.07834101382 | H66: 0
A67: Stik | B67: stk. | C67: 75 | D67: 3587 | E67: 3157 | F67: 3026 | G67: =IF(D67="",IF(E67>0,"Ny data",IF(E67="","",0)),IF(D67=0,IF(E67=0,0,"Ny data"),(E67-D67)/D67)) -> -0.1198773348 | H67: =IF(E67="",IF(F67>0,"Ny data",IF(F67="","",0)),IF(E67=0,IF(F67=0,0,"Ny data"),(F67-E67)/E67)) -> -0.04149509028
A68: Brønde og stik, ledningsnet - Indre city
A69: Brønde | B69: stk. | C69: 75 | D69: 0 | G69: 0
A70: Stik | B70: stk. | C70: 75 | D70: 0 | G70: 0
A71: Små pumpestationer (<100 l/s) inkl. SRO-anlæg - Land
A72: Tryksatte minipumpestationer (husstandssystemer) | B72: stk. | C72: 30 | D72: 2636 | E72: 2815 | F72: 2824 | G72: 0.06790591806 | H72: 0.003197158082
A73: Pumpestationer i brønde (< 6,25 m2), Konstruktioner | B73: stk. | C73: 50 | D73: =11+187+1 -> 199 | E73: =11+187+1 -> 199 | F73: 199 | G73: 0 | H73: 0
A74: Pumpestationer i brønde (< 6,25 m2), Mek/EL | B74: stk. | C74: 20 | D74: =(187+11-21-9)*2+21+9+2+3 -> 371 | E74: =(187+11-21-9)*2+21+9+2+3 -> 371 | F74: 371 | G74: 0 | H74: 0
A75: Pumpestationer i brønde (< 6,25 m2), SRO | B75: stk. | C75: 10 | D75: =187+11-9-21+1 -> 169 | E75: =187+11-9-21+1 -> 169 | F75: 169 | G75: 0 | H75: 0
A76: Pumpestationer m. overbygning (< 20 m2), Konstruktioner | B76: stk. | C76: 50 | D76: 26 | E76: 27 | F76: 28 | G76: 0.03846153846 | H76: 0.03703703704
A77: Pumpestationer m. overbygning (< 20 m2), Mek/EL | B77: stk. | C77: 20 | D77: =26*2 -> 52 | E77: =26*2 -> 52 | F77: 52 | G77: 0 | H77: 0
A78: Pumpestationer m. overbygning (< 20 m2), SRO | B78: stk. | C78: 10 | D78: 26 | E78: 27 | F78: 28 | G78: 0.03846153846 | H78: 0.03703703704
A79: Pumpestationer i underjordiske bygværker (<50 m2), Konstruktioner | B79: stk. | C79: 50 | D79: 0 | G79: 0
A80: Pumpestationer i underjordiske bygværker (<50 m2), Mek/El | B80: stk. | C80: 20 | D80: 0 | G80: 0
A81: Pumpestationer i underjordiske bygværker (<50 m2), SRO | B81: stk. | C81: 10 | D81: 0 | G81: 0
A82: Små pumpestationer (<100 l/s) inkl. SRO-anlæg - By
A83: Tryksatte minipumpestationer (husstandssystemer) | B83: stk. | C83: 30 | D83: 0 | E83: 15 | F83: 15 | G83: Ny data | H83: 0 | I83: Forbedret data
A84: Pumpestationer i brønde (< 6,25 m2), Konstruktioner | B84: stk. | C84: 50 | D84: =94 -> 94 | E84: 94 | F84: 94 | G84: 0 | H84: 0
A85: Pumpestationer i brønde (< 6,25 m2), Mek/EL | B85: stk. | C85: 20 | D85: =92*2 -> 184 | E85: 184 | F85: 184 | G85: 0 | H85: 0
A86: Pumpestationer i brønde (< 6,25 m2), SRO | B86: stk. | C86: 10 | D86: =94 -> 94 | E86: 95 | F86: 95 | G86: 0.01063829787 | H86: 0
A87: Pumpestationer m. overbygning (< 20 m2), Konstruktioner | B87: stk. | C87: 50 | D87: 6 | E87: 6 | F87: 6 | G87: 0 | H87: 0
A88: Pumpestationer m. overbygning (< 20 m2), Mek/EL | B88: stk. | C88: 20 | D88: =6*2 -> 12 | E88: 12 | F88: 12 | G88: 0 | H88: 0
A89: Pumpestationer m. overbygning (< 20 m2), SRO | B89: stk. | C89: 10 | D89: 6 | E89: 6 | F89: 6 | G89: 0 | H89: 0
A90: Pumpestationer i underjordiske bygværker (<50 m2), Konstruktioner | B90: stk. | C90: 50 | D90: 3 | E90: 3 | F90: 3 | G90: 0 | H90: 0
A91: Pumpestationer i underjordiske bygværker (<50 m2), Mek/El | B91: stk. | C91: 20 | D91: =2*3+1*2 -> 8 | E91: 8 | F91: 8 | G91: 0 | H91: 0
A92: Pumpestationer i underjordiske bygværker (<50 m2), SRO | B92: stk. | C92: 10 | D92: 3 | E92: 3 | F92: 3 | G92: 0 | H92: 0
A93: Små pumpestationer (<100 l/s) inkl. SRO-anlæg - City
A94: Tryksatte minipumpestationer (husstandssystemer) | B94: stk. | C94: 30 | D94: 0 | G94: 0
A95: Pumpestationer i brønde (< 6,25 m2), Konstruktioner | B95: stk. | C95: 50 | D95: 0 | G95: 0
A96: Pumpestationer i brønde (< 6,25 m2), Mek/EL | B96: stk. | C96: 20 | D96: 0 | G96: 0
A97: Pumpestationer i brønde (< 6,25 m2), SRO | B97: stk. | C97: 10 | D97: 0 | G97: 0
A98: Pumpestationer m. overbygning (< 20 m2), Konstruktioner | B98: stk. | C98: 50 | D98: 0 | G98: 0
A99: Pumpestationer m. overbygning (< 20 m2), Mek/EL | B99: stk. | C99: 20 | D99: 0 | G99: 0
A100: Pumpestationer m. overbygning (< 20 m2), SRO | B100: stk. | C100: 10 | D100: 0 | G100: 0
A101: Pumpestationer i underjordiske bygværker (<50 m2), Konstruktioner | B101: stk. | C101: 50 | D101: 0 | G101: 0
A102: Pumpestationer i underjordiske bygværker (<50 m2), Mek/El | B102: stk. | C102: 20 | D102: 0 | G102: 0
A103: Pumpestationer i underjordiske bygværker (<50 m2), SRO | B103: stk. | C103: 10 | D103: 0 | G103: 0
A104: Små pumpestationer (<100 l/s) inkl. SRO-anlæg - Indre city
A105: Tryksatte minipumpestationer (husstandssystemer) | B105: stk. | C105: 30 | D105: 0 | G105: 0
A106: Pumpestationer i brønde (< 6,25 m2), Konstruktioner | B106: stk. | C106: 50 | D106: 0 | G106: 0
A107: Pumpestationer i brønde (< 6,25 m2), Mek/EL | B107: stk. | C107: 20 | D107: 0 | G107: 0
A108: Pumpestationer i brønde (< 6,25 m2), SRO | B108: stk. | C108: 10 | D108: 0 | G108: 0
A109: Pumpestationer m. overbygning (< 20 m2), Konstruktioner | B109: stk. | C109: 50 | D109: 0 | G109: 0
A110: Pumpestationer m. overbygning (< 20 m2), Mek/EL | B110: stk. | C110: 20 | D110: 0 | G110: 0
A111: Pumpestationer m. overbygning (< 20 m2), SRO | B111: stk. | C111: 10 | D111: 0 | G111: 0
A112: Pumpestationer i underjordiske bygværker (<50 m2), Konstruktioner | B112: stk. | C112: 50 | D112: 0 | G112: 0
A113: Pumpestationer i underjordiske bygværker (<50 m2), Mek/El | B113: stk. | C113: 20 | D113: 0 | G113: 0
A114: Pumpestationer i underjordiske bygværker (<50 m2), SRO | B114: stk. | C114: 10 | D114: 0 | G114: 0
A115: Store pumpestationer: inkl. SRO-anlæg - Land
A116: Kælder | B116: m2 | C116: 75 | D116: 29 | E116: 29 | F116: 29 | G116: 0 | H116: 0 | I116: Antaller er rettet
A117: Pumpeinstallation Miljøklasse A (100-300 l/s) - Mek/EL | B117: stk. | C117: 20 | D117: 0 | G117: 0
A118: Pumpeinstallation Miljøklasse A (100-300 l/s) - SRO | B118: stk. | C118: 10 | D118: 0 | G118: 0
A119: Pumpeinstallation Miljøklasse A (300-600 l/s) - Mek/EL | B119: stk. | C119: 20 | D119: 0 | G119: 0
A120: Pumpeinstallation Miljøklasse A (300-600 l/s) - SRO | B120: stk. | C120: 10 | D120: 0 | G120: 0
A121: Pumpeinstallation Miljøklasse A (600-1.000 l/s) - Mek/EL | B121: stk. | C121: 20 | D121: 0 | G121: 0
A122: Pumpeinstallation Miljøklasse A (600-1.000 l/s) - SRO | B122: stk. | C122: 10 | D122: 0 | G122: 0
A123: Pumpeinstallation Miljøklasse A (1.000-1.500 l/s) - Mek/EL | B123: stk. | C123: 20 | D123: 2 | E123: 2 | F123: 2 | G123: 0 | H123: 0
A124: Pumpeinstallation Miljøklasse A (1.000-1.500 l/s) - SRO | B124: stk. | C124: 10 | D124: 1 | E124: 1 | F124: 1 | G124: 0 | H124: 0
A125: Pumpeinstallation Miljøklasse B (100-300 l/s) - Mek/EL | B125: stk. | C125: 20 | D125: 0 | G125: 0
A126: Pumpeinstallation Miljøklasse B (100-300 l/s) - SRO | B126: stk. | C126: 10 | D126: 0 | G126: 0
A127: Pumpeinstallation Miljøklasse B (300-600 l/s) - Mek/EL | B127: stk. | C127: 20 | D127: 0 | G127: 0
A128: Pumpeinstallation Miljøklasse B (300-600 l/s) - SRO | B128: stk. | C128: 10 | D128: 0 | G128: 0
A129: Pumpeinstallation Miljøklasse B (600-1.000 l/s) - Mek/EL | B129: stk. | C129: 20 | D129: 0 | G129: 0
A130: Pumpeinstallation Miljøklasse B (600-1.000 l/s) - SRO | B130: stk. | C130: 10 | D130: 0 | G130: 0
A131: Pumpeinstallation Miljøklasse B (1.000-1.500 l/s) - Mek/EL | B131: stk. | C131: 20 | D131: 0 | G131: =IF(D131="",IF(E131>0,"Ny data",IF(E131="","",0)),IF(D131=0,IF(E131=0,0,"Ny data"),(E131-D131)/D131)) -> 0 | H131: =IF(E131="",IF(F131>0,"Ny data",IF(F131="","",0)),IF(E131=0,IF(F131=0,0,"Ny data"),(F131-E131)/E131)) -> 
A132: Pumpeinstallation Miljøklasse B (1.000-1.500 l/s) - SRO | B132: stk. | C132: 10 | D132: 0 | G132: 0
A133: Overbygning | B133: m2 | C133: 75 | D133: 0 | G133: 0
A134: Store pumpestationer: inkl. SRO-anlæg - By
A135: Kælder | B135: m2 | C135: 75 | D135: 22 | E135: 22 | F135: 22 | G135: 0 | H135: 0 | I135: Antaller er rettet
A136: Pumpeinstallation Miljøklasse A (100-300 l/s) - Mek/EL | B136: stk. | C136: 20 | D136: =4*3 -> 12 | E136: 12 | F136: 12 | G136: 0 | H136: 0
A137: Pumpeinstallation Miljøklasse A (100-300 l/s) - SRO | B137: stk. | C137: 10 | D137: 4 | E137: 4 | F137: 4 | G137: 0 | H137: 0
A138: Pumpeinstallation Miljøklasse A (300-600 l/s) - Mek/EL | B138: stk. | C138: 20 | D138: 0 | E138: 1 | F138: 1 | G138: Ny data | H138: 0 | I138: Forbedret data
A139: Pumpeinstallation Miljøklasse A (300-600 l/s) - SRO | B139: stk. | C139: 10 | D139: 0 | E139: 1 | F139: 1 | G139: Ny data | H139: 0 | I139: Forbedret data
A140: Pumpeinstallation Miljøklasse A (600-1.000 l/s) - Mek/EL | B140: stk. | C140: 20 | D140: 0 | G140: 0
A141: Pumpeinstallation Miljøklasse A (600-1.000 l/s) - SRO | B141: stk. | C141: 10 | D141: 0 | G141: 0
A142: Pumpeinstallation Miljøklasse A (1.000-1.500 l/s) - Mek/EL | B142: stk. | C142: 20 | D142: 0 | G142: 0
A143: Pumpeinstallation Miljøklasse A (1.000-1.500 l/s) - SRO | B143: stk. | C143: 10 | D143: 0 | G143: 0
A144: Pumpeinstallation Miljøklasse B (100-300 l/s) - Mek/EL | B144: stk. | C144: 20 | D144: 0 | G144: 0
A145: Pumpeinstallation Miljøklasse B (100-300 l/s) - SRO | B145: stk. | C145: 10 | D145: 0 | G145: 0
A146: Pumpeinstallation Miljøklasse B (300-600 l/s) - Mek/EL | B146: stk. | C146: 20 | D146: 0 | G146: 0
A147: Pumpeinstallation Miljøklasse B (300-600 l/s) - SRO | B147: stk. | C147: 10 | D147: 0 | G147: 0
A148: Pumpeinstallation Miljøklasse B (600-1.000 l/s) - Mek/EL | B148: stk. | C148: 20 | D148: 0 | G148: 0
A149: Pumpeinstallation Miljøklasse B (600-1.000 l/s) - SRO | B149: stk. | C149: 10 | D149: 0 | G149: 0
A150: Pumpeinstallation Miljøklasse B (1.000-1.500 l/s) - Mek/EL | B150: stk. | C150: 20 | D150: 0 | G150: 0
A151: Pumpeinstallation Miljøklasse B (1.000-1.500 l/s) - SRO | B151: stk. | C151: 10 | D151: 0 | G151: 0
A152: Overbygning | B152: m2 | C152: 75 | D152: 0 | G152: 0
A153: Store pumpestationer: inkl. SRO-anlæg - City
A154: Kælder | B154: m2 | C154: 75 | D154: 0 | G154: 0
A155: Pumpeinstallation Miljøklasse A (100-300 l/s) - Mek/EL | B155: stk. | C155: 20 | D155: 0 | G155: 0
A156: Pumpeinstallation Miljøklasse A (100-300 l/s) - SRO | B156: stk. | C156: 10 | D156: 0 | G156: 0
A157: Pumpeinstallation Miljøklasse A (300-600 l/s) - Mek/EL | B157: stk. | C157: 20 | D157: 0 | G157: 0
A158: Pumpeinstallation Miljøklasse A (300-600 l/s) - SRO | B158: stk. | C158: 10 | D158: 0 | G158: 0
A159: Pumpeinstallation Miljøklasse A (600-1.000 l/s) - Mek/EL | B159: stk. | C159: 20 | D159: 0 | G159: 0
A160: Pumpeinstallation Miljøklasse A (600-1.000 l/s) - SRO | B160: stk. | C160: 10 | D160: 0 | G160: 0
A161: Pumpeinstallation Miljøklasse A (1.000-1.500 l/s) - Mek/EL | B161: stk. | C161: 20 | D161: 0 | G161: 0
A162: Pumpeinstallation Miljøklasse A (1.000-1.500 l/s) - SRO | B162: stk. | C162: 10 | D162: 0 | G162: 0
A163: Pumpeinstallation Miljøklasse B (100-300 l/s) - Mek/EL | B163: stk. | C163: 20 | D163: 0 | G163: 0
A164: Pumpeinstallation Miljøklasse B (100-300 l/s) - SRO | B164: stk. | C164: 10 | D164: 0 | G164: 0
A165: Pumpeinstallation Miljøklasse B (300-600 l/s) - Mek/EL | B165: stk. | C165: 20 | D165: 0 | G165: 0
A166: Pumpeinstallation Miljøklasse B (300-600 l/s) - SRO | B166: stk. | C166: 10 | D166: 0 | G166: 0
A167: Pumpeinstallation Miljøklasse B (600-1.000 l/s) - Mek/EL | B167: stk. | C167: 20 | D167: 0 | G167: 0
A168: Pumpeinstallation Miljøklasse B (600-1.000 l/s) - SRO | B168: stk. | C168: 10 | D168: 0 | G168: 0
A169: Pumpeinstallation Miljøklasse B (1.000-1.500 l/s) - Mek/EL | B169: stk. | C169: 20 | D169: 0 | G169: 0
A170: Pumpeinstallation Miljøklasse B (1.000-1.500 l/s) - SRO | B170: stk. | C170: 10 | D170: 0 | G170: 0
A171: Overbygning | B171: m2 | C171: 75 | D171: 0 | G171: 0
A172: Store pumpestationer: inkl. SRO-anlæg - Indre city
A173: Kælder | B173: m2 | C173: 75 | D173: 0 | G173: 0
A174: Pumpeinstallation Miljøklasse A (100-300 l/s) - Mek/EL | B174: stk. | C174: 20 | D174: 0 | G174: 0
A175: Pumpeinstallation Miljøklasse A (100-300 l/s) - SRO | B175: stk. | C175: 10 | D175: 0 | G175: 0
A176: Pumpeinstallation Miljøklasse A (300-600 l/s) - Mek/EL | B176: stk. | C176: 20 | D176: 0 | G176: 0
A177: Pumpeinstallation Miljøklasse A (300-600 l/s) - SRO | B177: stk. | C177: 10 | D177: 0 | G177: 0
A178: Pumpeinstallation Miljøklasse A (600-1.000 l/s) - Mek/EL | B178: stk. | C178: 20 | D178: 0 | G178: 0
A179: Pumpeinstallation Miljøklasse A (600-1.000 l/s) - SRO | B179: stk. | C179: 10 | D179: 0 | G179: 0
A180: Pumpeinstallation Miljøklasse A (1.000-1.500 l/s) - Mek/EL | B180: stk. | C180: 20 | D180: 0 | G180: 0
A181: Pumpeinstallation Miljøklasse A (1.000-1.500 l/s) - SRO | B181: stk. | C181: 10 | D181: 0 | G181: 0
A182: Pumpeinstallation Miljøklasse B (100-300 l/s) - Mek/EL | B182: stk. | C182: 20 | D182: 0 | G182: 0
A183: Pumpeinstallation Miljøklasse B (100-300 l/s) - SRO | B183: stk. | C183: 10 | D183: 0 | G183: 0
A184: Pumpeinstallation Miljøklasse B (300-600 l/s) - Mek/EL | B184: stk. | C184: 20 | D184: 0 | G184: 0
A185: Pumpeinstallation Miljøklasse B (300-600 l/s) - SRO | B185: stk. | C185: 10 | D185: 0 | G185: 0
A186: Pumpeinstallation Miljøklasse B (600-1.000 l/s) - Mek/EL | B186: stk. | C186: 20 | D186: 0 | G186: 0
A187: Pumpeinstallation Miljøklasse B (600-1.000 l/s) - SRO | B187: stk. | C187: 10 | D187: 0 | G187: 0
A188: Pumpeinstallation Miljøklasse B (1.000-1.500 l/s) - Mek/EL | B188: stk. | C188: 20 | D188: 0 | G188: 0
A189: Pumpeinstallation Miljøklasse B (1.000-1.500 l/s) - SRO | B189: stk. | C189: 10 | D189: 0 | G189: 0
A190: Overbygning | B190: m2 | C190: 75 | D190: 0 | G190: 0
A191: Overløbsbygværker - Land
A192: Kælder (< 7 m2) | B192: stk. | C192: 75 | D192: 0 | G192: 0
A193: Kælder (7 - 20 m2) | B193: m2 | C193: 75 | D193: 0 | G193: 0
A194: Kælder (20 - 30 m2) | B194: m2 | C194: 75 | D194: 0 | G194: 0
A195: Installationer (mindre end 7 m2) | B195: stk. | C195: 20 | D195: 14 | E195: 75 | F195: 75 | G195: =IF(D195="",IF(E195>0,"Ny data",IF(E195="","",0)),IF(D195=0,IF(E195=0,0,"Ny data"),(E195-D195)/D195)) -> 4.357142857 | H195: =IF(E195="",IF(F195>0,"Ny data",IF(F195="","",0)),IF(E195=0,IF(F195=0,0,"Ny data"),(F195-E195)/E195)) -> 0 | I195: registrering fejl, overløb har været registreret som brønde
A196: Installationer, Miljøklasse A. (7-20 m2) - Mek/EL | B196: stk. | C196: 20 | D196: 0 | G196: 0
A197: Installationer, Miljøklasse A. (7-20 m2) - SRO | B197: stk. | C197: 10 | D197: 0 | G197: 0
A198: Installationer, Miljøklasse A. (20-30 m2) - Mek/EL | B198: stk. | C198: 20 | D198: 0 | G198: 0
A199: Installationer, Miljøklasse A. (20-30 m2) - SRO | B199: stk. | C199: 10 | D199: 0 | G199: 0
A200: Installationer, Miljøklasse B. (7-20 m2) - Mek/EL | B200: stk. | C200: 20 | D200: 0 | G200: 0
A201: Installationer, Miljøklasse B. (7-20 m2) - SRO | B201: stk. | C201: 10 | D201: 0 | G201: 0
... 117 more rows

Sheet Fællesfunktionsanlæg
A1: Fællesfunktionsanlæg | B1: Enhed | C1: Standard-levetid | D1: Samlet mængde per 31/12-2022 | E1: Samlet mængde per 31/12-2023 | F1: Samlet mængde per 31/12-2024 | G1: Afvigelse 2022-2023 | H1: Afvigelse 2023-2024 | I1: Bemærkninger
A3: Andre
A4: Administrationbygninger | B4: m2 | C4: 75 | D4: 1276 | E4: 1276 | F4: 1276 | G4: =IF(D4="",IF(E4>0,"Ny data",IF(E4="","",0)),IF(D4=0,IF(E4=0,0,"Ny data"),(E4-D4)/D4)) -> 0 | H4: =IF(E4="",IF(F4>0,"Ny data",IF(F4="","",0)),IF(E4=0,IF(F4=0,0,"Ny data"),(F4-E4)/E4)) -> 0
A5: Arbejdsplads og kontor | B5: stk. | C5: 5 | D5: 20 | E5: 20 | F5: 19 | G5: 0 | H5: -0.05
A6: Køretøjer, personbil | B6: stk. | C6: 5 | D6: 8 | E6: 8 | F6: 9 | G6: 0 | H6: 0.125
A7: Køretøjer, små lastvogne (< 3.500 kg.) | B7: stk. | C7: 5 | D7: 9 | E7: 9 | F7: 9 | G7: 0 | H7: 0
A8: Køretøjer, store lastvogne (> 3.500 kg.) | B8: stk. | C8: 5 | D8: 2 | E8: 1 | F8: 1 | G8: -0.5 | H8: 0 | I8: Afgang
A9: Køretøjer, entreprenørmaskiner | B9: stk. | C9: 5 | D9: 1 | E9: 1 | F9: 1 | G9: 0 | H9: 0
A10: Slamsugere | B10: stk. | C10: 5 | D10: 2 | E10: 2 | F10: 2 | G10: 0 | H10: 0
A11: Værksteder, garager | B11: m2 | C11: 75 | D11: 1617 | E11: 1617 | F11: 1617 | G11: 0 | H11: 0
A12: Solcelleanlæg eksl. Inverter | B12: kWp | C12: 25 | D12: 0 | E12: 0 | F12: 0 | G12: 0 | H12: 0
A13: Inverter til solcelleanlæg | B13: kWp | C13: 10 | D13: 0 | E13: 0 | F13: 0 | G13: 0 | H13: 0
